Cogmind - Beta 10.2 @@@ ROGUE MODE // 2020.12.05 @ 06:23:26 Player: Virvatuli Result: Destroyed by G-34 Mercenary with Small Laser Performance ------------- Evolutions (0) 0 Regions Visited (1) 200 Robots Destroyed (10) 50 Value Destroyed (222) 222 Prototype IDs (0) 0 Alien Tech Used (0) 0 Bonus (0) 0 TOTAL SCORE: 472 Bonus ------- None Cogmind --------- Core Integrity 0/250 Matter 300/300 Energy 100/100 System Corruption 2% Temperature Cool (6) Movement Core (50) Location -10/Materials Parts ------- > --- POWER (1) -------- (None) > --- PROPULSION (2) --- (None) > --- UTILITY (2) ------ (None) > --- WEAPON (2) ------- (None) > --- INVENTORY (4) ---- Large Matter Pod (150) Weapon Shielding Peak State ------------ > --- POWER ------------ Light Nuclear Core > --- PROPULSION ------- VTOL Module VTOL Module > --- UTILITY ---------- Improved Heat Sink Improved Sensor Array > --- WEAPON ----------- Medium Laser > --- INVENTORY -------- Ion Engine Large Matter Pod [Rating: 13] Favorites ----------- Power Ion Engine Engine Ion Engine Power Core Light Nuclear Core Propulsion Light Treads Treads Light Treads Wheel Compact Wheel Flight Unit VTOL Module Utility Small Storage Unit Device Improved Sensor Array Storage Small Storage Unit Weapon Medium Laser Energy Gun Medium Laser Ballistic Cannon Light Cannon Special Weapon Welding Torch Build | -11 -10 ------- Run | Scr Mat Slots Evolved . | . . Power . | . . Propulsion . | . . Utility . | . . Weapon . | . . Parts Attached 19 | 6 13 Power 4 | 1 3 Engine 3 | 1 2 Core 1 | . 1 Reactor . | . . Propulsion 6 | 2 4 Treads 2 | 2 . Leg . | . . Wheel 2 | . 2 Hover . | . . Flight 2 | . 2 Utility 4 | 1 3 Device 3 | . 3 Storage 1 | 1 . Processor . | . . Hackware . | . . Protection . | . . Artifact . | . . Weapon 5 | 2 3 Energy Gun 2 | 2 . Energy Cannon . | . . Ballistic Gun . | . . Ballistic Cannon 1 | . 1 Launcher . | . . Special Weapon 2 | . 2 Impact Weapon . | . . Slashing Weapon . | . . Piercing Weapon . | . . Special Melee Weapon . | . . Unidentified Prototypes . | . . Parts Lost 11 | . 11 Power 2 | . 2 Propulsion 4 | . 4 Utility 2 | . 2 Weapon 3 | . 3 Highest Loss Streak 5 | . 5 Average Slot Usage (%) 80 | . 80 Engine 10 | . 10 Treads 17 | . 17 Wheel 4 | . 4 Flight 3 | . 3 Device 14 | . 14 Storage 8 | . 8 Energy Gun 12 | . 12 Ballistic Cannon 7 | . 7 Naked Turns 6 | . 6 Heaviest Build 15 | 13 15 Greatest Support 40 | 40 40 Greatest Overweight (x) 2 | . 2 Average Overweight (x) . | . . Largest Inventory Capacity 6 | 6 6 Average Capacity 5 | 5 5 Most Carried 4 | 2 4 Average Carried 1 | . 1 Final Capacity 6 | 6 4 Final Carried 2 | . 2 Class Distribution -------------------- 100% | Mutant Dominant Class ---------------- Mutant | -10/Materials Resources | -11 -10 ----------- Run | Scr Mat Matter Collected 712 | 205 507 Remotely . | . . Salvage Created 280 | . 280 Parts 21 | . 21 Haulers Intercepted . | . . Recyclers Shooed . | . . Parts Field Recycled . | . . Retrieved Matter . | . . Parts Self-Destructed . | . . Prevented . | . . Kills | -11 -10 ------- Run | Scr Mat Combat Hostiles Destroyed 6 | . 6 Guns 3 | . 3 Cannons 3 | . 3 Classes Destroyed 5 | . 5 Recycler 1 | . 1 Operator 1 | . 1 Watcher 2 | . 2 Swarmer 3 | . 3 Grunt 3 | . 3 Best Kill Streak 4 | . 4 Combat Bots Only 3 | . 3 Max Kills in Single Turn 1 | . 1 Gunslinging . | . . Exploded . | . . Melee . | . . Uniques/NPCs Destroyed . | . . Combat | -11 -10 -------- Run | Scr Mat Damage Taken 881 | . 881 Core 254 | . 254 Absorbed by Shields . | . . Core Remaining (%) 100 | 100 . Volleys Fired 50 | . 50 Largest 2 | . 2 Hottest 90 | . 90 Shots Fired 79 | . 79 Gun 44 | . 44 Cannon 27 | . 27 Launcher . | . . Special 8 | . 8 Kinetic 27 | . 27 Thermal 50 | . 50 Explosive . | . . Electromagnetic 2 | . 2 Robot Hit Streak 8 | . 8 Robot Miss Streak 5 | . 5 Penetration Max . | . . Secondary Targets . | . . Shots Hit Robots 43 | . 43 Core Hits 21 | . 21 Critical Hits 1 | . 1 Critical Kills 1 | . 1 Critical Parts Destroyed . | . . Melee Attacks . | . . Impact . | . . Slashing . | . . Piercing . | . . Sneak Attacks . | . . Combat Hostiles . | . . Follow-up Attacks . | . . Damage Inflicted 539 | . 539 Guns 309 | . 309 Cannons 153 | . 153 Explosions 42 | . 42 Melee . | . . Ramming 20 | . 20 Kinetic 153 | . 153 Thermal 334 | . 334 Explosive . | . . Electromagnetic 32 | . 32 Impact . | . . Slashing . | . . Piercing . | . . Highest Corruption 2 | . 2 Average Corruption 2 | . 2 Corruption Purged . | . . Effects 7 | . 7 Message Errors 4 | . 4 Heat Flow Errors 2 | . 2 Targeting Errors 1 | . 1 Overload Shots . | . . Overflow Damage 12 | . 12 Projectiles . | . . Explosions 12 | . 12 Melee . | . . Knockbacks . | . . Impact . | . . Kinetic . | . . Secondary . | . . Self-Inflicted Damage 7 | . 7 Shots . | . . Rammed 10 | . 10 Targets Rammed 10 | . 10 Kicked . | . . Crushed . | . . Highest Temperature 246 | . 246 Average Temperature 74 | . 74 Received Heat Transfer 432 | . 432 Siege Activations . | . . Robots Corrupted . | . . Combat Hostiles . | . . Parts Fried . | . . Impact Corruptions . | . . Robots Melted . | . . Combat Hostiles . | . . Parts Melted 3 | . 3 Heat Transferred 1014 | . 1014 Parts Sabotaged . | . . Parts Stolen . | . . Parts Stripped . | . . Power Chain Reactions 1 | . 1 Missiles Intercepted . | . . Alert | -11 -10 ------- Run | Scr Mat Peak Influence 222 | . 222 Initial . | . . Average 55 | . 60 Maximum Alert Level 1 | . 1 Low Security (%) 97 | 100 97 Level 1 2 | . 2 Level 2 . | . . Level 3 . | . . Level 4 . | . . Level 5 . | . . High Security . | . . Max Security . | . . Squads Dispatched 2 | . 2 Investigation 2 | . 2 Extermination . | . . Reinforcement . | . . Assault . | . . Garrison . | . . Intercept . | . . Construction Impeded . | . . Haulers Reinforced . | . . Stealth | -11 -10 --------- Run | Scr Mat Distress Signals 1 | . 1 Communications Jammed . | . . Distress Signals . | . . Times Spotted 17 | . 17 Peak Tracking Total 5 | . 5 Tactical Retreats 2 | . 2 Traps | -11 -10 ------- Run | Scr Mat Traps Triggered 3 | . 3 Indirectly . | . . Trap Hack Attempts . | . . Triggered . | . . Disarmed . | . . Reprogrammed . | . . Reused . | . . Traps Extracted . | . . Installed . | . . Triggered . | . . Machines | -11 -10 ---------- Run | Scr Mat Machines Disabled 1 | . 1 Max in Single Turn 1 | . 1 Machines Sabotaged . | . . Garrisons Compromised . | . . Overloaded Fab Kills . | . . Fab Network Shutdowns . | . . Hacking | -11 -10 --------- Run | Scr Mat Machines Accessed 6 | . 6 Terminals 4 | . 4 Fabricators . | . . Repair Stations . | . . Recycling Units 2 | . 2 Scanalyzers . | . . Garrison Access . | . . Total Hacks 19 | . 19 Successful 13 | . 13 Failed 6 | . 6 Catastrophic 1 | . 1 Database Lockouts . | . . Manual . | . . Terminals 12 | . 12 Fabricators . | . . Repair Stations . | . . Recycling Units 7 | . 7 Scanalyzers . | . . Garrison Access . | . . Terminal Hacks 7 | . 7 Record 7 | . 7 Fabricator Hacks . | . . Repair Station Hacks . | . . Recycling Unit Hacks 6 | . 6 Recycle Component 1 | . 1 Process 1 | . 1 Report Inventory 2 | . 2 Retrieve Matter 1 | . 1 Retrieve Components 1 | . 1 Scanalyzer . | . . Garrison Access Hacks . | . . Unauthorized Hacks . | . . Terminals . | . . Fabricators . | . . Repair Stations . | . . Recycling Units . | . . Scanalyzers . | . . Garrison Access . | . . Data Cores Recovered . | . . Used . | . . Hacking Detections 5 | . 5 Full Trace Events 1 | . 1 Feedback Events . | . . Feedback Blocked . | . . Robot Schematics Acquired . | . . Robots Built . | . . Matter . | . . Time . | . . Total Robot Build Rating . | . . Part Schematics Acquired . | . . Parts Built . | . . Matter . | . . Time . | . . Total Part Build Rating . | . . Parts Repaired . | . . Time . | . . Parts Recycled 1 | . 1 Recycled Matter 187 | . 187 Retrieved Matter 248 | . 248 Retrieved Components . | . . Parts Scanalyzed . | . . Part Schematics Acquired . | . . Parts Damaged . | . . Bothacking | -11 -10 ------------ Run | Scr Mat Used RIF Installer . | . . Robots Hacked . | . . Non-combat . | . . Combat . | . . Robot Hacks Applied . | . . Relay Couplers Released . | . . Robots Rewired . | . . Allies Hacked . | . . Hacks Repelled . | . . Allies | -11 -10 -------- Run | Scr Mat Total Allies . | . . Largest Group . | . . Highest-Rated Group . | . . Highest-Rated Ally . | . . Total Orders . | . . Ally Attacks . | . . Total Damage . | . . Kills . | . . Allies Corrupted . | . . Allies Melted . | . . Intel | -11 -10 ------- Run | Scr Mat Robot Analysis Total . | . . Derelict Logs Recovered . | . . Drone Launches . | . . Drone Recoveries . | . . Exploration | -11 -10 ------------- Run | Scr Mat Turns Passed 1053 | 86 967 Spaces Moved 722 | 50 672 Core 109 | 6 103 Treads 315 | 44 271 Legs . | . . Wheels 160 | . 160 Hover . | . . Flight 138 | . 138 Fastest Speed 37 | 50 37 Average Speed 110 | 146 108 Slowest Speed 220 | 160 220 Overloaded Moves . | . . Propulsion Burnouts . | . . Robots Hopped 2 | . 2 Cave-ins Triggered . | . . Exploration Rate (%) 40 | 3 78 Regions Visited 1 Branch Regions . Pre-discovered Areas . | . . Known Exits Taken . | . . Unknown Exits Taken 1 | 1 . Scrap Searched . | . . Spaces Dug . | . . Terrain Destroyed 2 | . 2 Melee . | . . Projectile . | . . AOE 2 | . 2 Terrain Rammed . | . . Walls Destroyed . | . . Machines Disabled . | . . Actions | -11 -10 --------- Run | Scr Mat Total 893 | 63 830 Wait 59 | . 59 Move 717 | 49 668 Hop 2 | . 2 Pick Up 25 | 7 18 Fast Attach . | . . Attach 13 | 6 7 Detach . | . . Swap 6 | . 6 Drop 11 | 1 10 Fire 50 | . 50 Melee . | . . Ram 10 | . 10 Kick . | . . Crush . | . . Escape Stasis . | . . Rewire . | . . Trap . | . . Miscellaneous . | . . Route ------- -11/Scrapyard -10/Materials (discovered 3 exits: [*Mat] / [*Min x2]) History --------- Turn | Location | Event 10 | -11/Scrapyard | Discovered new exit (range 15) 87 | -11/Scrapyard | Entered Materials 119 | -10/Materials | Discovered new exit (range 12) 309 | -10/Materials | Build established: Mutant 433 | -10/Materials | Discovered new exit (range 7) 779 | -10/Materials | Discovered new exit (range 16) 868 | -10/Materials | Lost 5 parts (1p2n2w) 1042 | -10/Materials | Core integrity fell below 50% 1051 | -10/Materials | Core integrity fell below 20% 1054 | -10/Materials | Destroyed by G-34 Mercenary with Small Laser Last Messages --------------- T-07 Excavator is excavating. U-05 Engineer lays Concrete. Welding Torch destroyed. Slammed into G-34 Mercenary. T-07 Excavator is excavating. U-05 Engineer lays Concrete. Imp. Heat Sink destroyed. Slammed into G-34 Mercenary. Imp. Sensor Array destroyed. Slammed into G-34 Mercenary. T-07 Excavator is excavating. Wheel destroyed. Slammed into G-34 Mercenary. U-05 Engineer lays Concrete. Slammed into G-34 Mercenary. Com. Wheel destroyed. Slammed into G-34 Mercenary. U-05 Engineer lays Concrete. Slammed into G-34 Mercenary. U-05 Engineer lays Concrete. Map ----- +----------------------------------------------------+ | ???????????? # # # | | ???????????? ########## ######## | | ??????????? ^ " ##"""""" | | ??????????? "" ##" !"! | | ??????????? R" ##" | | ????????????# """ | | ????????????# < | | ????????????# | | ????????????# ##########+### # | | ????????????# #????????????# ####### | | ????????????# #????????????# #?????? | | ????????????# #????????????# #?????? | | ????????????# #????????????#% #?????? | | ??########### #????????????# #?????? | | ??# # #????????????# ####### | | ??# # ############## ## # | | ??# # ## "" # | | ??# """"""" + ## T" # | | ??# """"""" # ## "" # | | ??# """"""" ### ############## ## # | | ??# """"""" #?# #????????????# ## !| # | | ??# """"""" #?# #????????????# ## | # | | ??#########+#?# #????????????# ## | # | | ?????????## ### #???????????## ## # | | ?????##### g%#???????????# ###+## | | ?????# # g@#???????????# | | ?????#ut g g#???????????# T | | ?????# # %%%%%#???????????# | | ?????##### ###+###?????# ###### | | ?????????# #?????#######????? | | ?????????# #????????????????? | | ?????????+ ##+##### #????????????????? | | ?????????# # #? #????????????????? | | ?????????# # #???????????????????? | | ?????????#### " #???????????????????? | | ????????????#!! T +???????????????????? | | ????????????#! " #???????????????????? | | ????????????# #???????????????????? | | ????????????########???????????????????? | | ???????????????????????????????????????? | | ???????????????????????????????????????? | | ???????????????????????????????????????? | | ???????????????????????????????????????? | | | | | | | | | | | | | | | +----------------------------------------------------+ Best States ------------- Heat Dissipation 39 Energy Generation 14 Energy Capacity 250 Matter Stores 300 Matter Capacity 300 Sight Range 16 Robot Scan Range 13 Terrain Scan Density 10 Evasion (%) 62 Recoil Reduction 2 Item Schematics ----------------- None Robot Schematics ------------------ None Fabricated ------------ Nothing Alien Tech Used ----------------- None Achievements -------------- None Challenges ------------ None Game ------ Seed UltimateArchitectExoskeleton Manual? 0 Play Time 00:19:32 Cumulative 2.6 hours Start 2020.12.05 @ 05:13:51 End 2020.12.05 @ 06:23:26 Sessions 1 Manual Loads 0 Difficulty Rogue Special Mode None Game No. 4 Rogue 4 Adventurer 0 Explorer 0 Win Type - Total 0 Types 0/0/0/0/0/0/0/0/0 Lore% 8 Gallery% 8 Achievement% 7 Wizard Run 0 Options --------- ASCII 0 Keyboard 0 Movement Mouse Keybinds 0 Fullscreen 2 Font 18/SmallcapsGlow Map View 76x50 Tactical HUD 0 Map Filters NONE Filters NONE Steam 1 RUN: be687bff-cf94-4ca9-a588-ed4302227fbc